Cogmind - Beta 17.1 @@@ ROGUE MODE // 2026.09.12 @ 00:48:25 Player: TheSkyeDoctor Result: Destroyed by S-27 Virus with Autogun Performance ------------- Evolutions (4) 2000 Regions Visited (6) 1200 Robots Destroyed (17) 85 Value Destroyed (630) 630 Prototype IDs (9) 180 Alien Tech Used (0) 0 Bonus (800) 800 TOTAL SCORE: 4895 Bonus ------- Registered with UFD 300 Met Optimus in HQ 500 Cogmind --------- Core Integrity 0/850 Matter 270/300 Energy 98/100 System Corruption 2% Temperature Cool (0) Movement Core (50) Location -6/Lower Caves Parts ------- > --- POWER (1) -------- (None) > --- PROPULSION (4) --- (None) > --- UTILITY (8) ------ Machine Analyzer Improved Utility Shielding Makeshift Hacking Suite Makeshift Hacking Suite Makeshift Hacking Suite Improved Hacking Suite Improved Hacking Suite > --- WEAPON (2) ------- (None) > --- INVENTORY (5) ---- Carbon-fiber Leg High-capacity Matter Pod (200) Deep Structural Scanner Coil Gun DRS Beacon (Ready) Peak State ------------ > --- POWER ------------ Light Angular Momentum Engine > --- PROPULSION ------- Carbon-fiber Leg Carbon-fiber Leg Improved Carbon-fiber Leg Flexi-carbon Leg > --- UTILITY ---------- Improved Cooling System Machine Analyzer Improved Utility Shielding Makeshift Hacking Suite Makeshift Hacking Suite Makeshift Hacking Suite Improved Hacking Suite Improved Hacking Suite > --- WEAPON ----------- Magnetic Acceleration Cannon Power Sword > --- INVENTORY -------- Carbon-fiber Leg High-capacity Matter Pod Deep Structural Scanner Coil Gun DRS Beacon [Rating: 63] Favorites ----------- Power Ion Engine Engine Ion Engine Power Core Fission Core Propulsion Light Treads Treads Light Treads Leg Carbon-fiber Leg Wheel Wheel Utility Seismic Detector Device Seismic Detector Storage High-capacity Storage Unit Processor Machine Analyzer Hackware Makeshift Hacking Suite Protection Improved Utility Shielding Weapon Power Sword Energy Gun Small Laser Energy Cannon Proton Cannon Ballistic Gun Light Assault Rifle Ballistic Cannon Magnetic Acceleration Cannon Impact Weapon Shock Maul Slashing Weapon Power Sword Build | -11 -10 -10 -9 -6 -6 -6 ------- Run | Yrd Mat Sub Scr Fac Low Low Slots Evolved 8 | . . . . 8 . . Power . | . . . . . . . Propulsion 2 | . . . . 2 . . Utility 6 | . . . . 6 . . Weapon . | . . . . . . . Parts Attached 45 | 7 . 1 8 27 2 . Power 6 | 1 . 1 1 3 . . Engine 5 | 1 . 1 1 2 . . Core 1 | . . . . 1 . . Reactor . | . . . . . . . Propulsion 13 | 2 . . 2 8 1 . Treads 3 | 2 . . 1 . . . Leg 9 | . . . . 8 1 . Wheel 1 | . . . 1 . . . Hover . | . . . . . . . Flight . | . . . . . . . Utility 16 | 2 . . 3 11 . . Device 5 | 1 . . 1 3 . . Storage 2 | 1 . . 1 . . . Processor 2 | . . . 1 1 . . Hackware 5 | . . . . 5 . . Protection 2 | . . . . 2 . . Artifact . | . . . . . . . Weapon 10 | 2 . . 2 5 1 . Energy Gun 1 | 1 . . . . . . Energy Cannon 3 | . . . 1 2 . . Ballistic Gun 2 | 1 . . . . 1 . Ballistic Cannon 2 | . . . . 2 . . Launcher . | . . . . . . . Special Weapon . | . . . . . . . Impact Weapon 1 | . . . . 1 . . Slashing Weapon 1 | . . . 1 . . . Piercing Weapon . | . . . . . . . Special Melee Weapon . | . . . . . . . Unidentified Prototypes 1 | . . . . 1 . . Parts Lost 22 | . . 1 . 13 8 . Power 5 | . . 1 . 3 1 . Propulsion 9 | . . . . 5 4 . Utility 3 | . . . . 2 1 . Weapon 5 | . . . . 3 2 . Highest Loss Streak 8 | . . 1 . 7 8 . To Critical Strikes 1 | . . . . 1 . . Average Backups 9 | 1 3 4 11 8 3 4 Power . | . 1 . . 1 . . Propulsion . | . 1 1 1 . 1 1 Utility 4 | . 1 1 5 4 2 2 Weapon 3 | . . 1 4 2 . 1 Tool/Special . | . . . . . . . Unused Backups 9 | . . . 6 1 . 2 Power 1 | . . . 1 . . . Propulsion 1 | . . . . . . 1 Utility 1 | . . . . . . 1 Weapon 6 | . . . 5 1 . . Tool/Special . | . . . . . . . Average Slot Usage (%) 96 | . 100 99 99 85 89 46 Engine 11 | . 14 13 14 2 4 . Treads 19 | . 28 28 22 3 . . Leg 2 | . . . . 9 21 . Wheel 4 | . . . 5 2 . . Device 11 | . 14 14 12 9 3 . Storage 11 | . 14 14 13 3 . . Processor 2 | . . . 1 9 6 6 Hackware 4 | . . . . 19 33 33 Protection 1 | . . . . 5 6 6 Energy Gun 2 | . 14 14 . . . . Energy Cannon 8 | . . . 13 3 . . Ballistic Gun 2 | . 14 14 . . . . Slashing Weapon 9 | . . . 13 4 4 . Peak Build Rating 63 | 7 7 8 30 62 63 29 Average Rating 23 | 5 7 7 19 52 55 29 On Entrance 20 | . 7 7 8 30 62 29 Avg Prop Armor Cover (%) 12 | . . . 13 8 . . Naked Turns . | . . . . . . . Heaviest Build 72 | 13 13 13 57 72 24 2 Greatest Support 68 | 40 40 40 43 65 68 3 Greatest Overweight (x) 7 | . . . 5 7 2 . Average Overweight (x) 1 | . . . 2 3 . . Largest Inventory Capacity 20 | 8 8 8 20 20 5 5 Average Capacity 14 | 7 8 8 17 14 5 5 Most Carried 18 | 3 3 8 18 15 5 5 Average Carried 9 | 1 3 4 12 9 4 5 Final Capacity 20 | 8 8 8 20 5 5 5 Final Carried 17 | 3 3 8 17 4 5 5 Scrap Suit Usage (%) 1 | . . . . 13 . . Class Distribution -------------------- 80% | Mutant 15% | Hacker-Mutant 3% | Hacker-Assassin Dominant Class ---------------- Mutant | -10/Materials Mutant | -10/Subcaves Mutant | -9/Scraptown Hacker-Mutant | -6/Factory Hacker-Mutant | -6/Lower Caves Hacker-Mutant | -6/Lower Caves Resources | -11 -10 -10 -9 -6 -6 -6 ----------- Run | Yrd Mat Sub Scr Fac Low Low Matter Collected 990 | 281 . 115 165 388 41 . Remotely . | . . . . . . . Salvage Created 632 | 119 . 83 . 430 . . Parts 39 | 9 . 9 . 21 . . Haulers Intercepted . | . . . . . . . Recyclers Shooed . | . . . . . . . Parts Field Recycled . | . . . . . . . Retrieved Matter . | . . . . . . . Parts Self-Destructed 4 | . . 4 . . . . Prevented . | . . . . . . . Parts Restored . | . . . . . . . Kills | -11 -10 -10 -9 -6 -6 -6 ------- Run | Yrd Mat Sub Scr Fac Low Low Combat Hostiles Destroyed 13 | . . 2 . 11 . . Melee 7 | . . . . 7 . . Guns 2 | . . 2 . . . . Cannons 3 | . . . . 3 . . Classes Destroyed 6 | 2 . 1 . 3 . . Tunneler 3 | 3 . . . . . . Recycler 1 | 1 . . . . . . Swarmer 3 | . . . . 3 . . Grunt 6 | . . . . 6 . . Hunter 2 | . . . . 2 . . Subdweller 2 | . . 2 . . . . Best Kill Streak 4 | 4 . 1 . 4 . . Combat Bots Only 4 | . . 1 . 4 . . Max Kills in Single Turn 1 | 1 . 1 . 1 . . Gunslinging . | . . . . . . . Exploded . | . . . . . . . Melee 1 | . . . . 1 . . Uniques/NPCs Destroyed . | . . . . . . . Combat | -11 -10 -10 -9 -6 -6 -6 -------- Run | Yrd Mat Sub Scr Fac Low Low Hostile Shots Fired 335 | . . 20 . 233 74 8 Missed 107 | . . 2 . 82 19 4 Hits 228 | . . 18 . 151 55 4 Projectile 228 | . . 18 . 151 55 4 Critical Strikes 5 | . . 1 . 2 2 . Damage Taken 3583 | . . 423 . 2066 1026 68 Core 929 | . . 67 . 305 489 68 Absorbed by Shields . | . . . . . . . Redirected to Shielding 94 | . . . . 68 26 . Core Remaining (%) 86 | 100 . . 73 . . . Volleys Fired 49 | 11 . 13 . 18 7 . Largest 2 | 2 . 2 . 2 2 . Hottest 134 | 60 . 60 . 134 74 . Shots Fired 93 | 20 . 26 . 36 11 . Gun 53 | 20 . 26 . . 7 . Cannon 40 | . . . . 36 4 . Launcher . | . . . . . . . Special . | . . . . . . . Kinetic 53 | 11 . 13 . 18 11 . Thermal 40 | 9 . 13 . 18 . . Explosive . | . . . . . . . Electromagnetic . | . . . . . . . Robot Hit Streak 28 | 11 . 28 . 9 6 . Robot Miss Streak 4 | 2 . . . 4 2 . Penetration Max . | . . . . . . . Secondary Targets 1 | . . 1 . . . . Max Gunslinging Chain 1 | . . 1 . . . . Shots Hit Robots 87 | 14 . 26 . 39 8 . Core Hits 32 | 7 . 6 . 17 2 . Critical Kills 1 | . . . . 1 . . Critical Parts Destroyed 2 | . . . . . 2 . Critical Strikes 6 | . . 1 . 3 2 . Meltdown 1 | . . . . 1 . . Destroy 3 | . . 1 . . 2 . Sever 2 | . . . . 2 . . Melee Attacks 25 | . . . . 25 . . Impact . | . . . . . . . Slashing 25 | . . . . 25 . . Piercing . | . . . . . . . Sneak Attacks . | . . . . . . . Combat Hostiles . | . . . . . . . Follow-up Attacks . | . . . . . . . Damage Inflicted 1992 | 146 . 253 . 1427 166 . Guns 535 | 146 . 253 . . 136 . Cannons 773 | . . . . 744 29 . Explosions . | . . . . . . . Melee 683 | . . . . 683 . . Ramming 1 | . . . . . 1 . Kinetic 726 | 58 . 109 . 394 165 . Thermal 582 | 88 . 144 . 350 . . Explosive . | . . . . . . . Electromagnetic . | . . . . . . . Impact . | . . . . . . . Slashing 683 | . . . . 683 . . Piercing . | . . . . . . . Highest Corruption 2 | . . . . 2 2 2 Average Corruption 2 | . . . . 2 2 2 Corruption Purged . | . . . . . . . Corruption Blocked . | . . . . . . . Effects 6 | . . . . 1 5 . Message Errors 1 | . . . . . 1 . Matter Fused 2 | . . . . 1 1 . Energy Discharges 1 | . . . . . 1 . Data Loss (minor) 1 | . . . . . 1 . Misfires 1 | . . . . . 1 . Overload Shots . | . . . . . . . Overflow Damage 21 | . . . . 21 . . Projectiles 12 | . . . . 12 . . Explosions . | . . . . . . . Melee 9 | . . . . 9 . . Knockbacks 4 | . . . . 3 1 . Impact . | . . . . . . . Kinetic 3 | . . . . 2 1 . Secondary 1 | . . . . 1 . . Self-Inflicted Damage . | . . . . . . . Shots . | . . . . . . . Rammed 1 | . . . . . 1 . Targets Rammed 1 | . . . . . 1 . Kicked . | . . . . . . . Crushed . | . . . . . . . Highest Temperature 36 | 20 . . . . 36 . Average Temperature 15 | 14 . . . . 16 . Received Heat Transfer 684 | . . . . 303 372 9 Siege Activations . | . . . . . . . Martial Activations . | . . . . . . . Shielding Activations . | . . . . . . . Robots Disrupted . | . . . . . . . Combat Hostiles . | . . . . . . . Robots Corrupted . | . . . . . . . Combat Hostiles . | . . . . . . . Parts Fried . | . . . . . . . Impact Corruptions . | . . . . . . . Robots Melted 1 | . . . . 1 . . Combat Hostiles 1 | . . . . 1 . . Parts Melted . | . . . . . . . Heat Transferred 1075 | 200 . 325 . 550 . . Parts Sabotaged . | . . . . . . . Parts Stolen . | . . . . . . . Parts Stripped . | . . . . . . . Power Chain Reactions . | . . . . . . . Alert | -11 -10 -10 -9 -6 -6 -6 ------- Run | Yrd Mat Sub Scr Fac Low Low Maximum Alert Level 1 | . . . . 1 . . Low Security (%) 90 | 100 100 . . 86 . . Level 1 9 | . . . . 13 . . Level 2 . | . . . . . . . Level 3 . | . . . . . . . Level 4 . | . . . . . . . Level 5 . | . . . . . . . High Security . | . . . . . . . Max Security . | . . . . . . . Peak Influence 216 | 10 . . . 216 . . Initial . | . . . . . . . Average 94 | 1 . . . 130 . . Influence Increases 562 | 20 . . . 527 15 . Destroy 0b10 Robot/C 220 | . . . . 220 . . Destroy 0b10 Robot/NC 20 | 20 . . . . . . Destroy Leader 50 | . . . . 50 . . Successful Hack 2 | . . . . 2 . . Disable Machine 15 | . . . . 15 . . Anti-Garrison Action 200 | . . . . 200 . . Destroy Structure 10 | . . . . 10 . . Lose Combat Pursuer 45 | . . . . 30 15 . Influence Decreases 562 | 20 . . . 351 191 . Entered New Map 66 | . . . . . 66 . Time Decay 341 | 20 . . . 221 100 . Lost Part 155 | . . . . 130 25 . Squads Dispatched 5 | . . . . 4 . 1 Investigation 3 | . . . . 3 . . Extermination 1 | . . . . 1 . . Reinforcement . | . . . . . . . Assault 1 | . . . . . . 1 Garrison . | . . . . . . . Intercept . | . . . . . . . Searches Triggered . | . . . . . . . Construction Impeded . | . . . . . . . Haulers Reinforced . | . . . . . . . Active Scanning Responses . | . . . . . . . Cargo Convoy Interrupts . | . . . . . . . Stealth | -11 -10 -10 -9 -6 -6 -6 --------- Run | Yrd Mat Sub Scr Fac Low Low Distress Signals . | . . . . . . . Communications Jammed . | . . . . . . . Distress Signals . | . . . . . . . Times Spotted 36 | . 1 2 . 18 11 4 Peak Tracking Total 10 | . 1 2 . 7 10 7 Tactical Retreats 2 | . . . . 1 1 . Traps | -11 -10 -10 -9 -6 -6 -6 ------- Run | Yrd Mat Sub Scr Fac Low Low Traps Triggered 3 | . . 1 . 2 . . Indirectly . | . . . . . . . Trap Hack Attempts . | . . . . . . . Triggered . | . . . . . . . Disarmed . | . . . . . . . Reprogrammed . | . . . . . . . Reused . | . . . . . . . Traps Extracted . | . . . . . . . Installed . | . . . . . . . Triggered . | . . . . . . . Machines | -11 -10 -10 -9 -6 -6 -6 ---------- Run | Yrd Mat Sub Scr Fac Low Low Machines Disabled 1 | . . . . 1 . . Max in Single Turn 1 | . . . . 1 . . Garrison Access 1 | . . . . 1 . . Machines Repaired . | . . . . . . . Machines Dismantled . | . . . . . . . Machines Sabotaged . | . . . . . . . Overloaded Fab Kills . | . . . . . . . Hacking | -11 -10 -10 -9 -6 -6 -6 --------- Run | Yrd Mat Sub Scr Fac Low Low Machines Accessed 7 | . . . 2 5 . . Terminals 1 | . . . . 1 . . Fabricators . | . . . . . . . Repair Stations . | . . . . . . . Recycling Units 3 | . . . . 3 . . Scanalyzers . | . . . . . . . Garrison Access 1 | . . . . 1 . . Total Hacks 27 | . . . 19 8 . . Successful 24 | . . . 19 5 . . Failed 3 | . . . . 3 . . Catastrophic . | . . . . . . . Database Lockouts . | . . . . . . . Manual 8 | . . . . 8 . . Terminals 2 | . . . . 2 . . Fabricators . | . . . . . . . Repair Stations . | . . . . . . . Recycling Units 5 | . . . . 5 . . Scanalyzers . | . . . . . . . Garrison Access 1 | . . . . 1 . . Terminal Hacks 19 | . . . 19 . . . Record 19 | . . . 19 . . . Fabricator Hacks . | . . . . . . . Repair Station Hacks . | . . . . . . . Recycling Unit Hacks . | . . . . . . . Scanalyzer . | . . . . . . . Garrison Access Hacks . | . . . . . . . Unauthorized Hacks 5 | . . . . 5 . . Terminals 2 | . . . . 2 . . Assimilate 1 | . . . . 1 . . Botnet 1 | . . . . 1 . . Fabricators . | . . . . . . . Repair Stations . | . . . . . . . Recycling Units 2 | . . . . 2 . . Fedlink 2 | . . . . 2 . . Scanalyzers . | . . . . . . . Garrison Access 1 | . . . . 1 . . Jam 1 | . . . . 1 . . Data Cores Recovered . | . . . . . . . Used . | . . . . . . . Hacking Detections 3 | . . . . 3 . . Full Trace Events . | . . . . . . . Feedback Events . | . . . . . . . Feedback Blocked . | . . . . . . . Robot Schematics Acquired . | . . . . . . . Robots Built . | . . . . . . . Authchips . | . . . . . . . Time . | . . . . . . . Total Robot Build Rating . | . . . . . . . Part Schematics Acquired . | . . . . . . . Parts Built . | . . . . . . . Authchips . | . . . . . . . Time . | . . . . . . . Total Part Build Rating . | . . . . . . . Part Studies Acquired . | . . . . . . . Parts Repaired . | . . . . . . . Time . | . . . . . . . Parts Recycled . | . . . . . . . Recycled Matter . | . . . . . . . Retrieved Matter . | . . . . . . . Retrieved Components . | . . . . . . . Parts Scanalyzed . | . . . . . . . Part Schematics Acquired . | . . . . . . . Parts Damaged . | . . . . . . . Bothacking | -11 -10 -10 -9 -6 -6 -6 ------------ Run | Yrd Mat Sub Scr Fac Low Low Used RIF Installer . | . . . . . . . Robots Hacked . | . . . . . . . Non-combat . | . . . . . . . Combat . | . . . . . . . Robot Hacks Applied . | . . . . . . . Relay Couplers Released . | . . . . . . . Fabnet Peak Effective % . | . . . . . . . Robots Rewired . | . . . . . . . Allies Hacked . | . . . . . . . Hacks Repelled . | . . . . . . . Allies | -11 -10 -10 -9 -6 -6 -6 -------- Run | Yrd Mat Sub Scr Fac Low Low Total Allies . | . . . . . . . Largest Group . | . . . . . . . Highest-Rated Group . | . . . . . . . Highest-Rated Ally . | . . . . . . . Initial UFD Resources 36 | . . . . 22 36 36 Total Orders . | . . . . . . . Ally Attacks . | . . . . . . . Total Damage . | . . . . . . . Kills . | . . . . . . . Allies Corrupted . | . . . . . . . Allies Melted . | . . . . . . . Intel | -11 -10 -10 -9 -6 -6 -6 ------- Run | Yrd Mat Sub Scr Fac Low Low Active Infowar (turns) 4703 | 32 137 685 2849 696 276 28 Terrain 302 | . . . . 302 . . Structural 33 | . . . 33 . . . Seismic 3670 | 32 137 685 2816 . . . Machine Analysis 906 | . . . . 602 276 28 Robot Analysis Total . | . . . . . . . Derelict Logs Recovered 5 | . . 1 2 . 1 1 Drone Launches . | . . . . . . . Drone Recoveries . | . . . . . . . Exploration | -11 -10 -10 -9 -6 -6 -6 ------------- Run | Yrd Mat Sub Scr Fac Low Low Turns Passed 5051 | 128 137 685 3099 698 276 28 Spaces Moved 2856 | 60 84 394 1687 327 248 56 Core 146 | 8 . . . 7 75 56 Treads 1359 | 52 84 394 823 6 . . Legs 340 | . . . . 167 173 . Wheels 1011 | . . . 864 147 . . Hover . | . . . . . . . Flight . | . . . . . . . Fastest Speed 50 | 50 160 160 95 120 50 50 Average Speed 163 | 145 160 160 180 153 99 50 Slowest Speed 400 | 160 160 160 240 400 150 50 Overloaded Moves . | . . . . . . . Propulsion Burnouts . | . . . . . . . Robots Hopped . | . . . . . . . Potential Cave-ins . | . . . . . . . Cave-ins Triggered . | . . . . . . . Exploration Rate (%) 28 | 4 18 33 84 8 42 10 Regions Visited 6 Branch Regions 4 Pre-discovered Areas 8 | . . . 6 1 1 . Known Exits Taken 3 | . . . 1 1 1 . Unknown Exits Taken 3 | 1 1 1 . . . . Scrap Searched 5 | . . . 4 . 1 . Spaces Dug 5 | . . . . 5 . . Terrain Destroyed 13 | . . . . 10 3 . Melee 5 | . . . . 5 . . Projectile 8 | . . . . 5 3 . AOE . | . . . . . . . Terrain Rammed . | . . . . . . . Walls Destroyed . | . . . . . . . Machines Disabled . | . . . . . . . Actions | -11 -10 -10 -9 -6 -6 -6 --------- Run | Yrd Mat Sub Scr Fac Low Low Total 3098 | 80 87 423 1736 448 268 56 Wait 33 | . 4 10 . 11 8 . Move 2850 | 59 83 393 1686 326 247 56 Hop . | . . . . . . . Pick Up 45 | 3 . 6 27 8 1 . Fast Attach 20 | 7 . . 6 7 . . Attach 21 | . . 1 . 19 1 . Detach 6 | . . . 1 4 1 . Swap 11 | . . . 3 7 1 . Drop 21 | . . . 13 7 1 . Fire 49 | 11 . 13 . 18 7 . Melee 25 | . . . . 25 . . Ram 1 | . . . . . 1 . Kick . | . . . . . . . Crush . | . . . . . . . Escape Stasis 16 | . . . . 16 . . Rewire . | . . . . . . . Trap . | . . . . . . . Miscellaneous . | . . . . . . . Route ------- -11/Scrapyard -10/Materials (discovered 2 exits: [*Mat] / [*Sub]) -10/Subcaves -9/Scraptown (discovered 2 exits: *Fac x2) -6/Factory (discovered 4 exits: *Fac x2 / *Low x2) -6/Lower Caves -6/Lower Caves (discovered 2 exits: Fac / Zio) History --------- Turn | Location | Event 7 | -11/Scrapyard | Discovered new exit (range 15) 129 | -11/Scrapyard | Entered Materials 130 | -10/Materials | Met a group of wandering Federalists 199 | -10/Materials | Discovered new exit (range 14) 263 | -10/Materials | Discovered new exit (range 3) 266 | -10/Materials | Entered Subcaves 267 | -10/Subcaves | Continued accompanying wandering Federalists (5) 267 | -10/Subcaves | Approached by a straggling Scientist 301 | -10/Subcaves | Build established: Mutant 305 | -10/Subcaves | Shifting Twisted Machinery released Riot Gun 308 | -10/Subcaves | Shifting Twisted Machinery released Sub. Power Source 507 | -10/Subcaves | Learned Materials stockpile data 543 | -10/Subcaves | Lost 3 allies 544 | -10/Subcaves | Wandering Federalist uncovered a shortcut to Scraptown 951 | -10/Subcaves | Entered Scraptown 1159 | -9/Scraptown | Heard Great Nut preacher, LISTEN AND RECITE! 1231 | -9/Scraptown | Scanned Subdweller tech in exchange for log data 1234 | -9/Scraptown | Learned Research terminal intel 1235 | -9/Scraptown | Learned Factory interactive machine intel 1319 | -9/Scraptown | Discovered new exit (range 11) 1971 | -9/Scraptown | Visited Assassins FH 1992 | -9/Scraptown | Visited Awakened 2016 | -9/Scraptown | Visited TADAMA 2043 | -9/Scraptown | Visited Cave Peace 2083 | -9/Scraptown | Visited Comm Corps 2107 | -9/Scraptown | Visited Shadow of the Wyrm 2141 | -9/Scraptown | Visited SPCMW 2189 | -9/Scraptown | Visited UFD Registry 2189 | -9/Scraptown | Registered with UFD as "Steamrider" 2362 | -9/Scraptown | Guru changed UFD alias to "Beamchip" 2644 | -9/Scraptown | Visited A0-MCA Data Center 2721 | -9/Scraptown | Visited Cartography Club 2767 | -9/Scraptown | Visited Junk Repository 2844 | -9/Scraptown | Visited Infowarlord's Domain 2872 | -9/Scraptown | Visited Curators Association 2917 | -9/Scraptown | Visited Scrapoid Pod Storage 2940 | -9/Scraptown | Visited Supply Room 3026 | -9/Scraptown | Visited Abandonware Association 3047 | -9/Scraptown | Visited Chapter 10 3096 | -9/Scraptown | Visited Derelict Rescue Squad 3112 | -9/Scraptown | Found DRS Beacon 3356 | -9/Scraptown | Found Scrap Suit 3726 | -9/Scraptown | Found Surveybot 17 Chip 3768 | -9/Scraptown | Found Deep Structural Scanner 3780 | -9/Scraptown | Learned location of Mines (-9) 3780 | -9/Scraptown | Learned location of Cetus (-4) 3780 | -9/Scraptown | Learned location of Armory (-4) 3780 | -9/Scraptown | Learned 8 Materials zone layouts 3780 | -9/Scraptown | Learned 8 Factory zone layouts 3780 | -9/Scraptown | Learned 12 Materials zone layouts 3780 | -9/Scraptown | Learned 8 Lower Caves zone layouts 3780 | -9/Scraptown | Learned 12 Upper Caves zone layouts 3780 | -9/Scraptown | Learned 16 Upper Caves zone layouts 3780 | -9/Scraptown | Learned 24 Upper Caves zone layouts 3780 | -9/Scraptown | Learned Factory emergency access door positions 3780 | -9/Scraptown | Learned location of 1 exit from Factory 3780 | -9/Scraptown | Learned location of 2 exits from Lower Caves 3780 | -9/Scraptown | Identified exit to Factory 3955 | -9/Scraptown | Met Optimus 3955 | -9/Scraptown | Accepted into 0bPrime 4050 | -9/Scraptown | Entered Factory 4050 | -6/Factory | Evolved 8 slots: Propulsion x2, Utility x6 4051 | -6/Factory | Identified exit to Lower Caves 4052 | -6/Factory | Identified exit to Factory 4055 | -6/Factory | Loaded intel: 53 interactive machine locations 4307 | -6/Factory | Loaded intel: 8 recycling unit locations 4390 | -6/Factory | Lost 3 parts (1n1u1w) 4456 | -6/Factory | Learned location of Protoforge (-2) 4520 | -6/Factory | Lost 7 parts (2p2n1u2w) 4619 | -6/Factory | Build established: Hacker-Mutant 4748 | -6/Factory | Entered Lower Caves 4749 | -6/Lower Caves | Identified exit to Lower Caves 4971 | -6/Lower Caves | Core integrity fell below 50% 5012 | -6/Lower Caves | Learned location of Zion (-6) 5015 | -6/Lower Caves | Lost 8 parts (1p4n1u2w) 5015 | -6/Lower Caves | Core integrity fell below 20% 5024 | -6/Lower Caves | Entered another Lower Caves area 5025 | -6/Lower Caves | Identified exit to Zion 5034 | -6/Lower Caves | Learned Factory stockpile data 5042 | -6/Lower Caves | Attracted the attention of an 0b10 outpost 5052 | -6/Lower Caves | Destroyed by S-27 Virus with Autogun Last Messages --------------- (Destroy). 04973_ Destroyed Field Laser. 04974_ Lgt. Angular Momentum Engine destroyed. 04975_ Slug penetrates G-67 Veteran. 04975_ Slug penetrates Wall. 04984_ Flexi-carbon Leg destroyed. 05012_ Acquired derelict log, extracted data. World map updated: -6/Zion. 05013_ Slammed into S-27 Virus. 05022_ X CSN4AW=I| /B&TW3HS LOCATION=LOWER CAVES GOAL=ESCAPE Loading 2 Lower Caves exits... 05034_ Acquired derelict log, extracted data. Data stored: Factory stockpile data. 05041_ L-41 Fighter springs to life. 05042_ Y-64 Sentinel: "DETECTED UNIDENTIFIED DERELICT." 05042_ Slug penetrates Wall. 05046_ Y-64 Sentinel: "REQUESTING BACKUP." Map ----- +----------------------------------------------------+ | ?????????????????????????????????????????????????? | | ?????????????????????????????????????????????????? | | ?????????????????????????????????????????????????? | | ?????????????????????????????????????????????????? | | ?????????????????????????????????????????????????? | | ?????????????????????????????????????????????????? | | ?????????????????????????????????????????????????? | | ?????????????????????????????????????????????????? | | ?????????????????????????????????????????????????? | | ?????????????????????????????????????????????????? | | ?????????????????????????????????????????????????? | | ?????????????????????????????????????????????????? | | ?????????????????????????????????????????????????? | | ?????????????????????????????????????????????????# | | ?????????????????????????????????????????????????# | | ?????????????????????????????????????????????????# | | ?????????????????????????????????????????????????# | | ?????????????????????????????????????????????????# | | ?????????????????????????????????????????????????# | | ?????????????????????????????????????????????????# | | ?????????????????????????????????????????????????# | | ????????????????????????????????????????????????## | | ????????????????????????????????????????????????# | | ?????????????????????????????????????????????#### | | ???????????????????########################### | | ???????????????????# @ # | | ???????????????????# ######################### | | ?????????????????????????????????????????????# | | ?????????????????????????????????????????????# ##/ | | ?????????????????????????????????????????????# #? | | ?????????????????????????????????????????????# #? | | ?????????????????????????????????????????????# #?" | | ?????????????????????????????????????????????# #?# | | ?????????????????????????????????????????????# ??? | | ?????????????????????????????????????????????##??? | | ?????????????????????????????????????????????????? | | ?????????????????????????????????????????????????? | | ?????????????????????????????????????????????????? | | ?????????????????????????????????????????????????? | | ?????????????????????????????????????????????????? | | ?????????????????????????????????????????????????? | | ?????????????????????????????????????????????????? | | ?????????????????????????????????????????????????? | | ?????????????????????????????????????????????????? | | ?????????????????????????????????????????????????? | | ?????????????????????????????????????????????????? | | ?????????????????????????????????????????????????? | | ?????????????????????????????????????????????????? | | ?????????????????????????????????????????????????? | | ?????????????????????????????????????????????????? | +----------------------------------------------------+ Best States ------------- Heat Dissipation 64 Energy Generation 18 Energy Capacity 310 Matter Stores 300 Matter Capacity 300 Sight Range 16 Terrain Scan Range 16 Terrain Scan Density 1210 Armor Coverage 150 Utility Shielding 66 Evasion (%) 55 Recoil Reduction 2 Offensive Hacking 57 Item Schematics ----------------- None Robot Schematics ------------------ None Fabricated ------------ Nothing Repaired ---------- Nothing Studied --------- None Alien Tech Used ----------------- None Achievements -------------- None Challenges ------------ None Game ------ Seed StealthConcussiveSword Manual? 0 Play Time 00:22:53 Cumulative 207.8 hours Start 2026.09.09 @ 23:08:07 End 2026.09.12 @ 00:48:25 Sessions 2 Manual Loads 0 Difficulty Rogue Special Mode None Game No. 405 Rogue 405 Adventurer 0 Explorer 0 Win Type - Total 2 Types 2/0/0/0/0/0/0/0/0/0 Lore% 62 Gallery% 62 Achievement% 48 Wizard Run 0 Options --------- Layout 2 ASCII 0 Keyboard 1 Movement Arrows Keybinds 0 Fullscreen 1 Font 24/Smallcaps Map View 50x44 Zoom Use 0% Tactical HUD 1 Map Filters NONE Filters NONE Steam 1 RUN: 26d0c9ad-9c54-4d1c-99db-0a4fb974de99